{"text_format":"1","workbook":"xlsx","n_sheets":1,"sheets":["الغياب"],"not_rendered":{"charts":0,"images":0,"macros":1,"external_links":1,"defined_names":1,"comments":0,"pivot_tables":0},"unopened":[],"bounds":{"document_bytes":16777216,"sheet_cells":100000,"rows_first":2000,"rows_last":500,"rows_between":2000,"halvings":0,"cell_chars":16384,"cell_head_chars":4096},"cells_cut":0,"cells_raw":0,"read":"whole","date_system":"1900"}

{"sheet":"الغياب","index":0,"n_rows":20,"n_cols":44,"rows_kept":20,"cut":false,"hidden":false,"merged":[[1,16,1,17],[1,1,1,15],[1,21,1,22],[1,23,1,25],[3,2,4,2],[3,1,4,1],[3,3,4,3],[3,4,4,4]]}
[]
[null,"غياب شهر",null,null,null,null,null,null,null,null,null,null,null,null,null,null,{"$f":"mount(T2)","v":"أكتوبر"},null,")",10,"(","لسنة",null,2018]
[null,null,{"$f":"MAX(B:B)","v":14}]
[null,"الرقم","اسم المعلم","الصفة","الفترة",{"$f":"IF(F5=\"\",\"\",INDEX({\"السبت\";\"الأحد\";\"الإثنين\";\"الثلاثاء\";\"الأربعاء\";\"الخميس\";\"الجمعة\"},WEEKDAY(F5,16)))","v":"الإثنين"},{"$f":"IF(G5=\"\",\"\",INDEX({\"السبت\";\"الأحد\";\"الإثنين\";\"الثلاثاء\";\"الأربعاء\";\"الخميس\";\"الجمعة\"},WEEKDAY(G5,16)))","v":"الثلاثاء"},{"$f":"IF(H5=\"\",\"\",INDEX({\"السبت\";\"الأحد\";\"الإثنين\";\"الثلاثاء\";\"الأربعاء\";\"الخميس\";\"الجمعة\"},WEEKDAY(H5,16)))","v":"الأربعاء"},{"$f":"IF(I5=\"\",\"\",INDEX({\"السبت\";\"الأحد\";\"الإثنين\";\"الثلاثاء\";\"الأربعاء\";\"الخميس\";\"الجمعة\"},WEEKDAY(I5,16)))","v":"الخميس"},{"$f":"IF(J5=\"\",\"\",INDEX({\"السبت\";\"الأحد\";\"الإثنين\";\"الثلاثاء\";\"الأربعاء\";\"الخميس\";\"الجمعة\"},WEEKDAY(J5,16)))","v":"الجمعة"},{"$f":"IF(K5=\"\",\"\",INDEX({\"السبت\";\"الأحد\";\"الإثنين\";\"الثلاثاء\";\"الأربعاء\";\"الخميس\";\"الجمعة\"},WEEKDAY(K5,16)))","v":"السبت"},{"$f":"IF(L5=\"\",\"\",INDEX({\"السبت\";\"الأحد\";\"الإثنين\";\"الثلاثاء\";\"الأربعاء\";\"الخميس\";\"الجمعة\"},WEEKDAY(L5,16)))","v":"الأحد"},{"$f":"IF(M5=\"\",\"\",INDEX({\"السبت\";\"الأحد\";\"الإثنين\";\"الثلاثاء\";\"الأربعاء\";\"الخميس\";\"الجمعة\"},WEEKDAY(M5,16)))","v":"الإثنين"},{"$f":"IF(N5=\"\",\"\",INDEX({\"السبت\";\"الأحد\";\"الإثنين\";\"الثلاثاء\";\"الأربعاء\";\"الخميس\";\"الجمعة\"},WEEKDAY(N5,16)))","v":"الثلاثاء"},{"$f":"IF(O5=\"\",\"\",INDEX({\"السبت\";\"الأحد\";\"الإثنين\";\"الثلاثاء\";\"الأربعاء\";\"الخميس\";\"الجمعة\"},WEEKDAY(O5,16)))","v":"الأربعاء"},{"$f":"IF(P5=\"\",\"\",INDEX({\"السبت\";\"الأحد\";\"الإثنين\";\"الثلاثاء\";\"الأربعاء\";\"الخميس\";\"الجمعة\"},WEEKDAY(P5,16)))","v":"الخميس"},{"$f":"IF(Q5=\"\",\"\",INDEX({\"السبت\";\"الأحد\";\"الإثنين\";\"الثلاثاء\";\"الأربعاء\";\"الخميس\";\"الجمعة\"},WEEKDAY(Q5,16)))","v":"الجمعة"},{"$f":"IF(R5=\"\",\"\",INDEX({\"السبت\";\"الأحد\";\"الإثنين\";\"الثلاثاء\";\"الأربعاء\";\"الخميس\";\"الجمعة\"},WEEKDAY(R5,16)))","v":"السبت"},{"$f":"IF(S5=\"\",\"\",INDEX({\"السبت\";\"الأحد\";\"الإثنين\";\"الثلاثاء\";\"الأربعاء\";\"الخميس\";\"الجمعة\"},WEEKDAY(S5,16)))","v":"الأحد"},{"$f":"IF(T5=\"\",\"\",INDEX({\"السبت\";\"الأحد\";\"الإثنين\";\"الثلاثاء\";\"الأربعاء\";\"الخميس\";\"الجمعة\"},WEEKDAY(T5,16)))","v":"الإثنين"},{"$f":"IF(U5=\"\",\"\",INDEX({\"السبت\";\"الأحد\";\"الإثنين\";\"الثلاثاء\";\"الأربعاء\";\"الخميس\";\"الجمعة\"},WEEKDAY(U5,16)))","v":"الثلاثاء"},{"$f":"IF(V5=\"\",\"\",INDEX({\"السبت\";\"الأحد\";\"الإثنين\";\"الثلاثاء\";\"الأربعاء\";\"الخميس\";\"الجمعة\"},WEEKDAY(V5,16)))","v":"الأربعاء"},{"$f":"IF(W5=\"\",\"\",INDEX({\"السبت\";\"الأحد\";\"الإثنين\";\"الثلاثاء\";\"الأربعاء\";\"الخميس\";\"الجمعة\"},WEEKDAY(W5,16)))","v":"الخميس"},{"$f":"IF(X5=\"\",\"\",INDEX({\"السبت\";\"الأحد\";\"الإثنين\";\"الثلاثاء\";\"الأربعاء\";\"الخميس\";\"الجمعة\"},WEEKDAY(X5,16)))","v":"الجمعة"},{"$f":"IF(Y5=\"\",\"\",INDEX({\"السبت\";\"الأحد\";\"الإثنين\";\"الثلاثاء\";\"الأربعاء\";\"الخميس\";\"الجمعة\"},WEEKDAY(Y5,16)))","v":"السبت"},{"$f":"IF(Z5=\"\",\"\",INDEX({\"السبت\";\"الأحد\";\"الإثنين\";\"الثلاثاء\";\"الأربعاء\";\"الخميس\";\"الجمعة\"},WEEKDAY(Z5,16)))","v":"الأحد"},{"$f":"IF(AA5=\"\",\"\",INDEX({\"السبت\";\"الأحد\";\"الإثنين\";\"الثلاثاء\";\"الأربعاء\";\"الخميس\";\"الجمعة\"},WEEKDAY(AA5,16)))","v":"الإثنين"},{"$f":"IF(AB5=\"\",\"\",INDEX({\"السبت\";\"الأحد\";\"الإثنين\";\"الثلاثاء\";\"الأربعاء\";\"الخميس\";\"الجمعة\"},WEEKDAY(AB5,16)))","v":"الثلاثاء"},{"$f":"IF(AC5=\"\",\"\",INDEX({\"السبت\";\"الأحد\";\"الإثنين\";\"الثلاثاء\";\"الأربعاء\";\"الخميس\";\"الجمعة\"},WEEKDAY(AC5,16)))","v":"الأربعاء"},{"$f":"IF(AD5=\"\",\"\",INDEX({\"السبت\";\"الأحد\";\"الإثنين\";\"الثلاثاء\";\"الأربعاء\";\"الخميس\";\"الجمعة\"},WEEKDAY(AD5,16)))","v":"الخميس"},{"$f":"IF(AE5=\"\",\"\",INDEX({\"السبت\";\"الأحد\";\"الإثنين\";\"الثلاثاء\";\"الأربعاء\";\"الخميس\";\"الجمعة\"},WEEKDAY(AE5,16)))","v":"الجمعة"},{"$f":"IF(AF5=\"\",\"\",INDEX({\"السبت\";\"الأحد\";\"الإثنين\";\"الثلاثاء\";\"الأربعاء\";\"الخميس\";\"الجمعة\"},WEEKDAY(AF5,16)))","v":"السبت"},{"$f":"IF(AG5=\"\",\"\",INDEX({\"السبت\";\"الأحد\";\"الإثنين\";\"الثلاثاء\";\"الأربعاء\";\"الخميس\";\"الجمعة\"},WEEKDAY(AG5,16)))","v":"الأحد"},{"$f":"IF(AH5=\"\",\"\",INDEX({\"السبت\";\"الأحد\";\"الإثنين\";\"الثلاثاء\";\"الأربعاء\";\"الخميس\";\"الجمعة\"},WEEKDAY(AH5,16)))","v":"الإثنين"},{"$f":"IF(AI5=\"\",\"\",INDEX({\"السبت\";\"الأحد\";\"الإثنين\";\"الثلاثاء\";\"الأربعاء\";\"الخميس\";\"الجمعة\"},WEEKDAY(AI5,16)))","v":"الثلاثاء"},{"$f":"IF(AJ5=\"\",\"\",INDEX({\"السبت\";\"الأحد\";\"الإثنين\";\"الثلاثاء\";\"الأربعاء\";\"الخميس\";\"الجمعة\"},WEEKDAY(AJ5,16)))","v":"الأربعاء"},null,null,null,null,null,null,null,{"$f":"IF(AR5=\"\",\"\",INDEX({\"السبت\";\"الأحد\";\"الإثنين\";\"الثلاثاء\";\"الأربعاء\";\"الخميس\";\"الجمعة\"},WEEKDAY(AR5,16)))","v":{"$error":"#REF!"}}]
[null,null,null,null,null,{"$f":"IF(COLUMNS($E$1:E1)>DAY(DATE($X$2,INDEX(ROW($A$1:$A$12),MATCH($Q$2,{\"يناير\";\"فبراير\";\"مارس\";\"أبريل\";\"مايو\";\"يونيو\";\"يوليو\";\"أغسطس\";\"سبتمبر\";\"أكتوبر\";\"نوفمبر\";\"ديسمبر\"},0)),COLUMNS($E$1:E1))),\"\",DATE($X$2,INDEX(ROW($A$1:$A$12),MATCH($Q$2,{\"يناير\";\"فبراير\";\"مارس\";\"أبريل\";\"مايو\";\"يونيو\";\"يوليو\";\"أغسطس\";\"سبتمبر\";\"أكتوبر\";\"نوفمبر\";\"ديسمبر\"},0)),COLUMNS($E$1:E1)))","v":"2018-10-01"},{"$f":"IF(COLUMNS($E$1:F1)>DAY(DATE($X$2,INDEX(ROW($A$1:$A$12),MATCH($Q$2,{\"يناير\";\"فبراير\";\"مارس\";\"أبريل\";\"مايو\";\"يونيو\";\"يوليو\";\"أغسطس\";\"سبتمبر\";\"أكتوبر\";\"نوفمبر\";\"ديسمبر\"},0)),COLUMNS($E$1:F1))),\"\",DATE($X$2,INDEX(ROW($A$1:$A$12),MATCH($Q$2,{\"يناير\";\"فبراير\";\"مارس\";\"أبريل\";\"مايو\";\"يونيو\";\"يوليو\";\"أغسطس\";\"سبتمبر\";\"أكتوبر\";\"نوفمبر\";\"ديسمبر\"},0)),COLUMNS($E$1:F1)))","v":"2018-10-02"},{"$f":"IF(COLUMNS($E$1:G1)>DAY(DATE($X$2,INDEX(ROW($A$1:$A$12),MATCH($Q$2,{\"يناير\";\"فبراير\";\"مارس\";\"أبريل\";\"مايو\";\"يونيو\";\"يوليو\";\"أغسطس\";\"سبتمبر\";\"أكتوبر\";\"نوفمبر\";\"ديسمبر\"},0)),COLUMNS($E$1:G1))),\"\",DATE($X$2,INDEX(ROW($A$1:$A$12),MATCH($Q$2,{\"يناير\";\"فبراير\";\"مارس\";\"أبريل\";\"مايو\";\"يونيو\";\"يوليو\";\"أغسطس\";\"سبتمبر\";\"أكتوبر\";\"نوفمبر\";\"ديسمبر\"},0)),COLUMNS($E$1:G1)))","v":"2018-10-03"},{"$f":"IF(COLUMNS($E$1:H1)>DAY(DATE($X$2,INDEX(ROW($A$1:$A$12),MATCH($Q$2,{\"يناير\";\"فبراير\";\"مارس\";\"أبريل\";\"مايو\";\"يونيو\";\"يوليو\";\"أغسطس\";\"سبتمبر\";\"أكتوبر\";\"نوفمبر\";\"ديسمبر\"},0)),COLUMNS($E$1:H1))),\"\",DATE($X$2,INDEX(ROW($A$1:$A$12),MATCH($Q$2,{\"يناير\";\"فبراير\";\"مارس\";\"أبريل\";\"مايو\";\"يونيو\";\"يوليو\";\"أغسطس\";\"سبتمبر\";\"أكتوبر\";\"نوفمبر\";\"ديسمبر\"},0)),COLUMNS($E$1:H1)))","v":"2018-10-04"},{"$f":"IF(COLUMNS($E$1:I1)>DAY(DATE($X$2,INDEX(ROW($A$1:$A$12),MATCH($Q$2,{\"يناير\";\"فبراير\";\"مارس\";\"أبريل\";\"مايو\";\"يونيو\";\"يوليو\";\"أغسطس\";\"سبتمبر\";\"أكتوبر\";\"نوفمبر\";\"ديسمبر\"},0)),COLUMNS($E$1:I1))),\"\",DATE($X$2,INDEX(ROW($A$1:$A$12),MATCH($Q$2,{\"يناير\";\"فبراير\";\"مارس\";\"أبريل\";\"مايو\";\"يونيو\";\"يوليو\";\"أغسطس\";\"سبتمبر\";\"أكتوبر\";\"نوفمبر\";\"ديسمبر\"},0)),COLUMNS($E$1:I1)))","v":"2018-10-05"},{"$f":"IF(COLUMNS($E$1:J1)>DAY(DATE($X$2,INDEX(ROW($A$1:$A$12),MATCH($Q$2,{\"يناير\";\"فبراير\";\"مارس\";\"أبريل\";\"مايو\";\"يونيو\";\"يوليو\";\"أغسطس\";\"سبتمبر\";\"أكتوبر\";\"نوفمبر\";\"ديسمبر\"},0)),COLUMNS($E$1:J1))),\"\",DATE($X$2,INDEX(ROW($A$1:$A$12),MATCH($Q$2,{\"يناير\";\"فبراير\";\"مارس\";\"أبريل\";\"مايو\";\"يونيو\";\"يوليو\";\"أغسطس\";\"سبتمبر\";\"أكتوبر\";\"نوفمبر\";\"ديسمبر\"},0)),COLUMNS($E$1:J1)))","v":"2018-10-06"},{"$f":"IF(COLUMNS($E$1:K1)>DAY(DATE($X$2,INDEX(ROW($A$1:$A$12),MATCH($Q$2,{\"يناير\";\"فبراير\";\"مارس\";\"أبريل\";\"مايو\";\"يونيو\";\"يوليو\";\"أغسطس\";\"سبتمبر\";\"أكتوبر\";\"نوفمبر\";\"ديسمبر\"},0)),COLUMNS($E$1:K1))),\"\",DATE($X$2,INDEX(ROW($A$1:$A$12),MATCH($Q$2,{\"يناير\";\"فبراير\";\"مارس\";\"أبريل\";\"مايو\";\"يونيو\";\"يوليو\";\"أغسطس\";\"سبتمبر\";\"أكتوبر\";\"نوفمبر\";\"ديسمبر\"},0)),COLUMNS($E$1:K1)))","v":"2018-10-07"},{"$f":"IF(COLUMNS($E$1:L1)>DAY(DATE($X$2,INDEX(ROW($A$1:$A$12),MATCH($Q$2,{\"يناير\";\"فبراير\";\"مارس\";\"أبريل\";\"مايو\";\"يونيو\";\"يوليو\";\"أغسطس\";\"سبتمبر\";\"أكتوبر\";\"نوفمبر\";\"ديسمبر\"},0)),COLUMNS($E$1:L1))),\"\",DATE($X$2,INDEX(ROW($A$1:$A$12),MATCH($Q$2,{\"يناير\";\"فبراير\";\"مارس\";\"أبريل\";\"مايو\";\"يونيو\";\"يوليو\";\"أغسطس\";\"سبتمبر\";\"أكتوبر\";\"نوفمبر\";\"ديسمبر\"},0)),COLUMNS($E$1:L1)))","v":"2018-10-08"},{"$f":"IF(COLUMNS($E$1:M1)>DAY(DATE($X$2,INDEX(ROW($A$1:$A$12),MATCH($Q$2,{\"يناير\";\"فبراير\";\"مارس\";\"أبريل\";\"مايو\";\"يونيو\";\"يوليو\";\"أغسطس\";\"سبتمبر\";\"أكتوبر\";\"نوفمبر\";\"ديسمبر\"},0)),COLUMNS($E$1:M1))),\"\",DATE($X$2,INDEX(ROW($A$1:$A$12),MATCH($Q$2,{\"يناير\";\"فبراير\";\"مارس\";\"أبريل\";\"مايو\";\"يونيو\";\"يوليو\";\"أغسطس\";\"سبتمبر\";\"أكتوبر\";\"نوفمبر\";\"ديسمبر\"},0)),COLUMNS($E$1:M1)))","v":"2018-10-09"},{"$f":"IF(COLUMNS($E$1:N1)>DAY(DATE($X$2,INDEX(ROW($A$1:$A$12),MATCH($Q$2,{\"يناير\";\"فبراير\";\"مارس\";\"أبريل\";\"مايو\";\"يونيو\";\"يوليو\";\"أغسطس\";\"سبتمبر\";\"أكتوبر\";\"نوفمبر\";\"ديسمبر\"},0)),COLUMNS($E$1:N1))),\"\",DATE($X$2,INDEX(ROW($A$1:$A$12),MATCH($Q$2,{\"يناير\";\"فبراير\";\"مارس\";\"أبريل\";\"مايو\";\"يونيو\";\"يوليو\";\"أغسطس\";\"سبتمبر\";\"أكتوبر\";\"نوفمبر\";\"ديسمبر\"},0)),COLUMNS($E$1:N1)))","v":"2018-10-10"},{"$f":"IF(COLUMNS($E$1:O1)>DAY(DATE($X$2,INDEX(ROW($A$1:$A$12),MATCH($Q$2,{\"يناير\";\"فبراير\";\"مارس\";\"أبريل\";\"مايو\";\"يونيو\";\"يوليو\";\"أغسطس\";\"سبتمبر\";\"أكتوبر\";\"نوفمبر\";\"ديسمبر\"},0)),COLUMNS($E$1:O1))),\"\",DATE($X$2,INDEX(ROW($A$1:$A$12),MATCH($Q$2,{\"يناير\";\"فبراير\";\"مارس\";\"أبريل\";\"مايو\";\"يونيو\";\"يوليو\";\"أغسطس\";\"سبتمبر\";\"أكتوبر\";\"نوفمبر\";\"ديسمبر\"},0)),COLUMNS($E$1:O1)))","v":"2018-10-11"},{"$f":"IF(COLUMNS($E$1:P1)>DAY(DATE($X$2,INDEX(ROW($A$1:$A$12),MATCH($Q$2,{\"يناير\";\"فبراير\";\"مارس\";\"أبريل\";\"مايو\";\"يونيو\";\"يوليو\";\"أغسطس\";\"سبتمبر\";\"أكتوبر\";\"نوفمبر\";\"ديسمبر\"},0)),COLUMNS($E$1:P1))),\"\",DATE($X$2,INDEX(ROW($A$1:$A$12),MATCH($Q$2,{\"يناير\";\"فبراير\";\"مارس\";\"أبريل\";\"مايو\";\"يونيو\";\"يوليو\";\"أغسطس\";\"سبتمبر\";\"أكتوبر\";\"نوفمبر\";\"ديسمبر\"},0)),COLUMNS($E$1:P1)))","v":"2018-10-12"},{"$f":"IF(COLUMNS($E$1:Q1)>DAY(DATE($X$2,INDEX(ROW($A$1:$A$12),MATCH($Q$2,{\"يناير\";\"فبراير\";\"مارس\";\"أبريل\";\"مايو\";\"يونيو\";\"يوليو\";\"أغسطس\";\"سبتمبر\";\"أكتوبر\";\"نوفمبر\";\"ديسمبر\"},0)),COLUMNS($E$1:Q1))),\"\",DATE($X$2,INDEX(ROW($A$1:$A$12),MATCH($Q$2,{\"يناير\";\"فبراير\";\"مارس\";\"أبريل\";\"مايو\";\"يونيو\";\"يوليو\";\"أغسطس\";\"سبتمبر\";\"أكتوبر\";\"نوفمبر\";\"ديسمبر\"},0)),COLUMNS($E$1:Q1)))","v":"2018-10-13"},{"$f":"IF(COLUMNS($E$1:R1)>DAY(DATE($X$2,INDEX(ROW($A$1:$A$12),MATCH($Q$2,{\"يناير\";\"فبراير\";\"مارس\";\"أبريل\";\"مايو\";\"يونيو\";\"يوليو\";\"أغسطس\";\"سبتمبر\";\"أكتوبر\";\"نوفمبر\";\"ديسمبر\"},0)),COLUMNS($E$1:R1))),\"\",DATE($X$2,INDEX(ROW($A$1:$A$12),MATCH($Q$2,{\"يناير\";\"فبراير\";\"مارس\";\"أبريل\";\"مايو\";\"يونيو\";\"يوليو\";\"أغسطس\";\"سبتمبر\";\"أكتوبر\";\"نوفمبر\";\"ديسمبر\"},0)),COLUMNS($E$1:R1)))","v":"2018-10-14"},{"$f":"IF(COLUMNS($E$1:S1)>DAY(DATE($X$2,INDEX(ROW($A$1:$A$12),MATCH($Q$2,{\"يناير\";\"فبراير\";\"مارس\";\"أبريل\";\"مايو\";\"يونيو\";\"يوليو\";\"أغسطس\";\"سبتمبر\";\"أكتوبر\";\"نوفمبر\";\"ديسمبر\"},0)),COLUMNS($E$1:S1))),\"\",DATE($X$2,INDEX(ROW($A$1:$A$12),MATCH($Q$2,{\"يناير\";\"فبراير\";\"مارس\";\"أبريل\";\"مايو\";\"يونيو\";\"يوليو\";\"أغسطس\";\"سبتمبر\";\"أكتوبر\";\"نوفمبر\";\"ديسمبر\"},0)),COLUMNS($E$1:S1)))","v":"2018-10-15"},{"$f":"IF(COLUMNS($E$1:T1)>DAY(DATE($X$2,INDEX(ROW($A$1:$A$12),MATCH($Q$2,{\"يناير\";\"فبراير\";\"مارس\";\"أبريل\";\"مايو\";\"يونيو\";\"يوليو\";\"أغسطس\";\"سبتمبر\";\"أكتوبر\";\"نوفمبر\";\"ديسمبر\"},0)),COLUMNS($E$1:T1))),\"\",DATE($X$2,INDEX(ROW($A$1:$A$12),MATCH($Q$2,{\"يناير\";\"فبراير\";\"مارس\";\"أبريل\";\"مايو\";\"يونيو\";\"يوليو\";\"أغسطس\";\"سبتمبر\";\"أكتوبر\";\"نوفمبر\";\"ديسمبر\"},0)),COLUMNS($E$1:T1)))","v":"2018-10-16"},{"$f":"IF(COLUMNS($E$1:U1)>DAY(DATE($X$2,INDEX(ROW($A$1:$A$12),MATCH($Q$2,{\"يناير\";\"فبراير\";\"مارس\";\"أبريل\";\"مايو\";\"يونيو\";\"يوليو\";\"أغسطس\";\"سبتمبر\";\"أكتوبر\";\"نوفمبر\";\"ديسمبر\"},0)),COLUMNS($E$1:U1))),\"\",DATE($X$2,INDEX(ROW($A$1:$A$12),MATCH($Q$2,{\"يناير\";\"فبراير\";\"مارس\";\"أبريل\";\"مايو\";\"يونيو\";\"يوليو\";\"أغسطس\";\"سبتمبر\";\"أكتوبر\";\"نوفمبر\";\"ديسمبر\"},0)),COLUMNS($E$1:U1)))","v":"2018-10-17"},{"$f":"IF(COLUMNS($E$1:V1)>DAY(DATE($X$2,INDEX(ROW($A$1:$A$12),MATCH($Q$2,{\"يناير\";\"فبراير\";\"مارس\";\"أبريل\";\"مايو\";\"يونيو\";\"يوليو\";\"أغسطس\";\"سبتمبر\";\"أكتوبر\";\"نوفمبر\";\"ديسمبر\"},0)),COLUMNS($E$1:V1))),\"\",DATE($X$2,INDEX(ROW($A$1:$A$12),MATCH($Q$2,{\"يناير\";\"فبراير\";\"مارس\";\"أبريل\";\"مايو\";\"يونيو\";\"يوليو\";\"أغسطس\";\"سبتمبر\";\"أكتوبر\";\"نوفمبر\";\"ديسمبر\"},0)),COLUMNS($E$1:V1)))","v":"2018-10-18"},{"$f":"IF(COLUMNS($E$1:W1)>DAY(DATE($X$2,INDEX(ROW($A$1:$A$12),MATCH($Q$2,{\"يناير\";\"فبراير\";\"مارس\";\"أبريل\";\"مايو\";\"يونيو\";\"يوليو\";\"أغسطس\";\"سبتمبر\";\"أكتوبر\";\"نوفمبر\";\"ديسمبر\"},0)),COLUMNS($E$1:W1))),\"\",DATE($X$2,INDEX(ROW($A$1:$A$12),MATCH($Q$2,{\"يناير\";\"فبراير\";\"مارس\";\"أبريل\";\"مايو\";\"يونيو\";\"يوليو\";\"أغسطس\";\"سبتمبر\";\"أكتوبر\";\"نوفمبر\";\"ديسمبر\"},0)),COLUMNS($E$1:W1)))","v":"2018-10-19"},{"$f":"IF(COLUMNS($E$1:X1)>DAY(DATE($X$2,INDEX(ROW($A$1:$A$12),MATCH($Q$2,{\"يناير\";\"فبراير\";\"مارس\";\"أبريل\";\"مايو\";\"يونيو\";\"يوليو\";\"أغسطس\";\"سبتمبر\";\"أكتوبر\";\"نوفمبر\";\"ديسمبر\"},0)),COLUMNS($E$1:X1))),\"\",DATE($X$2,INDEX(ROW($A$1:$A$12),MATCH($Q$2,{\"يناير\";\"فبراير\";\"مارس\";\"أبريل\";\"مايو\";\"يونيو\";\"يوليو\";\"أغسطس\";\"سبتمبر\";\"أكتوبر\";\"نوفمبر\";\"ديسمبر\"},0)),COLUMNS($E$1:X1)))","v":"2018-10-20"},{"$f":"IF(COLUMNS($E$1:Y1)>DAY(DATE($X$2,INDEX(ROW($A$1:$A$12),MATCH($Q$2,{\"يناير\";\"فبراير\";\"مارس\";\"أبريل\";\"مايو\";\"يونيو\";\"يوليو\";\"أغسطس\";\"سبتمبر\";\"أكتوبر\";\"نوفمبر\";\"ديسمبر\"},0)),COLUMNS($E$1:Y1))),\"\",DATE($X$2,INDEX(ROW($A$1:$A$12),MATCH($Q$2,{\"يناير\";\"فبراير\";\"مارس\";\"أبريل\";\"مايو\";\"يونيو\";\"يوليو\";\"أغسطس\";\"سبتمبر\";\"أكتوبر\";\"نوفمبر\";\"ديسمبر\"},0)),COLUMNS($E$1:Y1)))","v":"2018-10-21"},{"$f":"IF(COLUMNS($E$1:Z1)>DAY(DATE($X$2,INDEX(ROW($A$1:$A$12),MATCH($Q$2,{\"يناير\";\"فبراير\";\"مارس\";\"أبريل\";\"مايو\";\"يونيو\";\"يوليو\";\"أغسطس\";\"سبتمبر\";\"أكتوبر\";\"نوفمبر\";\"ديسمبر\"},0)),COLUMNS($E$1:Z1))),\"\",DATE($X$2,INDEX(ROW($A$1:$A$12),MATCH($Q$2,{\"يناير\";\"فبراير\";\"مارس\";\"أبريل\";\"مايو\";\"يونيو\";\"يوليو\";\"أغسطس\";\"سبتمبر\";\"أكتوبر\";\"نوفمبر\";\"ديسمبر\"},0)),COLUMNS($E$1:Z1)))","v":"2018-10-22"},{"$f":"IF(COLUMNS($E$1:AA1)>DAY(DATE($X$2,INDEX(ROW($A$1:$A$12),MATCH($Q$2,{\"يناير\";\"فبراير\";\"مارس\";\"أبريل\";\"مايو\";\"يونيو\";\"يوليو\";\"أغسطس\";\"سبتمبر\";\"أكتوبر\";\"نوفمبر\";\"ديسمبر\"},0)),COLUMNS($E$1:AA1))),\"\",DATE($X$2,INDEX(ROW($A$1:$A$12),MATCH($Q$2,{\"يناير\";\"فبراير\";\"مارس\";\"أبريل\";\"مايو\";\"يونيو\";\"يوليو\";\"أغسطس\";\"سبتمبر\";\"أكتوبر\";\"نوفمبر\";\"ديسمبر\"},0)),COLUMNS($E$1:AA1)))","v":"2018-10-23"},{"$f":"IF(COLUMNS($E$1:AB1)>DAY(DATE($X$2,INDEX(ROW($A$1:$A$12),MATCH($Q$2,{\"يناير\";\"فبراير\";\"مارس\";\"أبريل\";\"مايو\";\"يونيو\";\"يوليو\";\"أغسطس\";\"سبتمبر\";\"أكتوبر\";\"نوفمبر\";\"ديسمبر\"},0)),COLUMNS($E$1:AB1))),\"\",DATE($X$2,INDEX(ROW($A$1:$A$12),MATCH($Q$2,{\"يناير\";\"فبراير\";\"مارس\";\"أبريل\";\"مايو\";\"يونيو\";\"يوليو\";\"أغسطس\";\"سبتمبر\";\"أكتوبر\";\"نوفمبر\";\"ديسمبر\"},0)),COLUMNS($E$1:AB1)))","v":"2018-10-24"},{"$f":"IF(COLUMNS($E$1:AC1)>DAY(DATE($X$2,INDEX(ROW($A$1:$A$12),MATCH($Q$2,{\"يناير\";\"فبراير\";\"مارس\";\"أبريل\";\"مايو\";\"يونيو\";\"يوليو\";\"أغسطس\";\"سبتمبر\";\"أكتوبر\";\"نوفمبر\";\"ديسمبر\"},0)),COLUMNS($E$1:AC1))),\"\",DATE($X$2,INDEX(ROW($A$1:$A$12),MATCH($Q$2,{\"يناير\";\"فبراير\";\"مارس\";\"أبريل\";\"مايو\";\"يونيو\";\"يوليو\";\"أغسطس\";\"سبتمبر\";\"أكتوبر\";\"نوفمبر\";\"ديسمبر\"},0)),COLUMNS($E$1:AC1)))","v":"2018-10-25"},{"$f":"IF(COLUMNS($E$1:AD1)>DAY(DATE($X$2,INDEX(ROW($A$1:$A$12),MATCH($Q$2,{\"يناير\";\"فبراير\";\"مارس\";\"أبريل\";\"مايو\";\"يونيو\";\"يوليو\";\"أغسطس\";\"سبتمبر\";\"أكتوبر\";\"نوفمبر\";\"ديسمبر\"},0)),COLUMNS($E$1:AD1))),\"\",DATE($X$2,INDEX(ROW($A$1:$A$12),MATCH($Q$2,{\"يناير\";\"فبراير\";\"مارس\";\"أبريل\";\"مايو\";\"يونيو\";\"يوليو\";\"أغسطس\";\"سبتمبر\";\"أكتوبر\";\"نوفمبر\";\"ديسمبر\"},0)),COLUMNS($E$1:AD1)))","v":"2018-10-26"},{"$f":"IF(COLUMNS($E$1:AE1)>DAY(DATE($X$2,INDEX(ROW($A$1:$A$12),MATCH($Q$2,{\"يناير\";\"فبراير\";\"مارس\";\"أبريل\";\"مايو\";\"يونيو\";\"يوليو\";\"أغسطس\";\"سبتمبر\";\"أكتوبر\";\"نوفمبر\";\"ديسمبر\"},0)),COLUMNS($E$1:AE1))),\"\",DATE($X$2,INDEX(ROW($A$1:$A$12),MATCH($Q$2,{\"يناير\";\"فبراير\";\"مارس\";\"أبريل\";\"مايو\";\"يونيو\";\"يوليو\";\"أغسطس\";\"سبتمبر\";\"أكتوبر\";\"نوفمبر\";\"ديسمبر\"},0)),COLUMNS($E$1:AE1)))","v":"2018-10-27"},{"$f":"IF(COLUMNS($E$1:AF1)>DAY(DATE($X$2,INDEX(ROW($A$1:$A$12),MATCH($Q$2,{\"يناير\";\"فبراير\";\"مارس\";\"أبريل\";\"مايو\";\"يونيو\";\"يوليو\";\"أغسطس\";\"سبتمبر\";\"أكتوبر\";\"نوفمبر\";\"ديسمبر\"},0)),COLUMNS($E$1:AF1))),\"\",DATE($X$2,INDEX(ROW($A$1:$A$12),MATCH($Q$2,{\"يناير\";\"فبراير\";\"مارس\";\"أبريل\";\"مايو\";\"يونيو\";\"يوليو\";\"أغسطس\";\"سبتمبر\";\"أكتوبر\";\"نوفمبر\";\"ديسمبر\"},0)),COLUMNS($E$1:AF1)))","v":"2018-10-28"},{"$f":"IF(COLUMNS($E$1:AG1)>DAY(DATE($X$2,INDEX(ROW($A$1:$A$12),MATCH($Q$2,{\"يناير\";\"فبراير\";\"مارس\";\"أبريل\";\"مايو\";\"يونيو\";\"يوليو\";\"أغسطس\";\"سبتمبر\";\"أكتوبر\";\"نوفمبر\";\"ديسمبر\"},0)),COLUMNS($E$1:AG1))),\"\",DATE($X$2,INDEX(ROW($A$1:$A$12),MATCH($Q$2,{\"يناير\";\"فبراير\";\"مارس\";\"أبريل\";\"مايو\";\"يونيو\";\"يوليو\";\"أغسطس\";\"سبتمبر\";\"أكتوبر\";\"نوفمبر\";\"ديسمبر\"},0)),COLUMNS($E$1:AG1)))","v":"2018-10-29"},{"$f":"IF(COLUMNS($E$1:AH1)>DAY(DATE($X$2,INDEX(ROW($A$1:$A$12),MATCH($Q$2,{\"يناير\";\"فبراير\";\"مارس\";\"أبريل\";\"مايو\";\"يونيو\";\"يوليو\";\"أغسطس\";\"سبتمبر\";\"أكتوبر\";\"نوفمبر\";\"ديسمبر\"},0)),COLUMNS($E$1:AH1))),\"\",DATE($X$2,INDEX(ROW($A$1:$A$12),MATCH($Q$2,{\"يناير\";\"فبراير\";\"مارس\";\"أبريل\";\"مايو\";\"يونيو\";\"يوليو\";\"أغسطس\";\"سبتمبر\";\"أكتوبر\";\"نوفمبر\";\"ديسمبر\"},0)),COLUMNS($E$1:AH1)))","v":"2018-10-30"},{"$f":"IF(COLUMNS($E$1:AI1)>DAY(DATE($X$2,INDEX(ROW($A$1:$A$12),MATCH($Q$2,{\"يناير\";\"فبراير\";\"مارس\";\"أبريل\";\"مايو\";\"يونيو\";\"يوليو\";\"أغسطس\";\"سبتمبر\";\"أكتوبر\";\"نوفمبر\";\"ديسمبر\"},0)),COLUMNS($E$1:AI1))),\"\",DATE($X$2,INDEX(ROW($A$1:$A$12),MATCH($Q$2,{\"يناير\";\"فبراير\";\"مارس\";\"أبريل\";\"مايو\";\"يونيو\";\"يوليو\";\"أغسطس\";\"سبتمبر\";\"أكتوبر\";\"نوفمبر\";\"ديسمبر\"},0)),COLUMNS($E$1:AI1)))","v":"2018-10-31"},{"$f":"IF(COLUMNS($E$1:AJ1)>DAY(DATE($X$2,INDEX(ROW($A$1:$A$6),MATCH($Q$2,{\"يناير\";\"فبراير\";\"مارس\";\"أبريل\";\"مايو\";\"يونيو\";\"يوليو\";\"أغسطس\";\"سبتمبر\";\"أكتوبر\";\"نوفمبر\";\"ديسمبر\"},0)),COLUMNS($E$1:AJ1))),\"\",DATE($X$2,INDEX(ROW($A$1:$A$6),MATCH($Q$2,{\"يناير\";\"فبراير\";\"مارس\";\"أبريل\";\"مايو\";\"يونيو\";\"يوليو\";\"أغسطس\";\"سبتمبر\";\"أكتوبر\";\"نوفمبر\";\"ديسمبر\"},0)),COLUMNS($E$1:AJ1)))","v":{"$error":"#REF!"}},{"$f":"IF(COLUMNS($E$1:AK1)>DAY(DATE($X$2,INDEX(ROW($A$1:$A$6),MATCH($Q$2,{\"يناير\";\"فبراير\";\"مارس\";\"أبريل\";\"مايو\";\"يونيو\";\"يوليو\";\"أغسطس\";\"سبتمبر\";\"أكتوبر\";\"نوفمبر\";\"ديسمبر\"},0)),COLUMNS($E$1:AK1))),\"\",DATE($X$2,INDEX(ROW($A$1:$A$6),MATCH($Q$2,{\"يناير\";\"فبراير\";\"مارس\";\"أبريل\";\"مايو\";\"يونيو\";\"يوليو\";\"أغسطس\";\"سبتمبر\";\"أكتوبر\";\"نوفمبر\";\"ديسمبر\"},0)),COLUMNS($E$1:AK1)))","v":{"$error":"#REF!"}},{"$f":"IF(COLUMNS($E$1:AL1)>DAY(DATE($X$2,INDEX(ROW($A$1:$A$6),MATCH($Q$2,{\"يناير\";\"فبراير\";\"مارس\";\"أبريل\";\"مايو\";\"يونيو\";\"يوليو\";\"أغسطس\";\"سبتمبر\";\"أكتوبر\";\"نوفمبر\";\"ديسمبر\"},0)),COLUMNS($E$1:AL1))),\"\",DATE($X$2,INDEX(ROW($A$1:$A$6),MATCH($Q$2,{\"يناير\";\"فبراير\";\"مارس\";\"أبريل\";\"مايو\";\"يونيو\";\"يوليو\";\"أغسطس\";\"سبتمبر\";\"أكتوبر\";\"نوفمبر\";\"ديسمبر\"},0)),COLUMNS($E$1:AL1)))","v":{"$error":"#REF!"}},{"$f":"IF(COLUMNS($E$1:AM1)>DAY(DATE($X$2,INDEX(ROW($A$1:$A$6),MATCH($Q$2,{\"يناير\";\"فبراير\";\"مارس\";\"أبريل\";\"مايو\";\"يونيو\";\"يوليو\";\"أغسطس\";\"سبتمبر\";\"أكتوبر\";\"نوفمبر\";\"ديسمبر\"},0)),COLUMNS($E$1:AM1))),\"\",DATE($X$2,INDEX(ROW($A$1:$A$6),MATCH($Q$2,{\"يناير\";\"فبراير\";\"مارس\";\"أبريل\";\"مايو\";\"يونيو\";\"يوليو\";\"أغسطس\";\"سبتمبر\";\"أكتوبر\";\"نوفمبر\";\"ديسمبر\"},0)),COLUMNS($E$1:AM1)))","v":{"$error":"#REF!"}},{"$f":"IF(COLUMNS($E$1:AN1)>DAY(DATE($X$2,INDEX(ROW($A$1:$A$6),MATCH($Q$2,{\"يناير\";\"فبراير\";\"مارس\";\"أبريل\";\"مايو\";\"يونيو\";\"يوليو\";\"أغسطس\";\"سبتمبر\";\"أكتوبر\";\"نوفمبر\";\"ديسمبر\"},0)),COLUMNS($E$1:AN1))),\"\",DATE($X$2,INDEX(ROW($A$1:$A$6),MATCH($Q$2,{\"يناير\";\"فبراير\";\"مارس\";\"أبريل\";\"مايو\";\"يونيو\";\"يوليو\";\"أغسطس\";\"سبتمبر\";\"أكتوبر\";\"نوفمبر\";\"ديسمبر\"},0)),COLUMNS($E$1:AN1)))","v":{"$error":"#REF!"}},{"$f":"IF(COLUMNS($E$1:AO1)>DAY(DATE($X$2,INDEX(ROW($A$1:$A$6),MATCH($Q$2,{\"يناير\";\"فبراير\";\"مارس\";\"أبريل\";\"مايو\";\"يونيو\";\"يوليو\";\"أغسطس\";\"سبتمبر\";\"أكتوبر\";\"نوفمبر\";\"ديسمبر\"},0)),COLUMNS($E$1:AO1))),\"\",DATE($X$2,INDEX(ROW($A$1:$A$6),MATCH($Q$2,{\"يناير\";\"فبراير\";\"مارس\";\"أبريل\";\"مايو\";\"يونيو\";\"يوليو\";\"أغسطس\";\"سبتمبر\";\"أكتوبر\";\"نوفمبر\";\"ديسمبر\"},0)),COLUMNS($E$1:AO1)))","v":{"$error":"#REF!"}},{"$f":"IF(COLUMNS($E$1:AP1)>DAY(DATE($X$2,INDEX(ROW($A$1:$A$6),MATCH($Q$2,{\"يناير\";\"فبراير\";\"مارس\";\"أبريل\";\"مايو\";\"يونيو\";\"يوليو\";\"أغسطس\";\"سبتمبر\";\"أكتوبر\";\"نوفمبر\";\"ديسمبر\"},0)),COLUMNS($E$1:AP1))),\"\",DATE($X$2,INDEX(ROW($A$1:$A$6),MATCH($Q$2,{\"يناير\";\"فبراير\";\"مارس\";\"أبريل\";\"مايو\";\"يونيو\";\"يوليو\";\"أغسطس\";\"سبتمبر\";\"أكتوبر\";\"نوفمبر\";\"ديسمبر\"},0)),COLUMNS($E$1:AP1)))","v":{"$error":"#REF!"}},{"$f":"IF(COLUMNS($E$1:AQ1)>DAY(DATE($X$2,INDEX(ROW($A$1:$A$6),MATCH($Q$2,{\"يناير\";\"فبراير\";\"مارس\";\"أبريل\";\"مايو\";\"يونيو\";\"يوليو\";\"أغسطس\";\"سبتمبر\";\"أكتوبر\";\"نوفمبر\";\"ديسمبر\"},0)),COLUMNS($E$1:AQ1))),\"\",DATE($X$2,INDEX(ROW($A$1:$A$6),MATCH($Q$2,{\"يناير\";\"فبراير\";\"مارس\";\"أبريل\";\"مايو\";\"يونيو\";\"يوليو\";\"أغسطس\";\"سبتمبر\";\"أكتوبر\";\"نوفمبر\";\"ديسمبر\"},0)),COLUMNS($E$1:AQ1)))","v":{"$error":"#REF!"}}]
[null,"الرقم","اسم العملم","م . مصنف","صباحية","1","2","3","4","5","6","7","8","9","10","11","12","13","14","15","16","17","18","19","20","21","22","23","24","25","26","27","28","29","30","31","أيام الغياب","أيام الغياب بالحروف","عدد أيام الغياب","شهر الغياب","عمود1"]
[null,{"$f":"IF(C7<>\"\",SUBTOTAL(3,$C$7:C7),\"\")","v":1},"معلم 1",{"$f":"IFERROR(VLOOKUP(الغياب[[#This Row],[اسم العملم]],[1]!البياناتالاساسية[[الاسم رباعي]:[الرقم الوطني]],53,0),\"\")","v":""},{"$f":"IFERROR(VLOOKUP(الغياب[[#This Row],[اسم العملم]],[1]!البياناتالاساسية[[الاسم رباعي]:[الرقم الوطني]],55,0),\"\")","v":""},null,null,null,null,null,"غ",null,null,null,null,null,null,null,null,null,null,null,null,null,null,null,null,null,null,null,null,null,null,null,null,null,{"$f":"Alsqr(F7:AJ7,\"غ\",\" -\",1,6)","v":"6 "},{"$f":"IF(الغياب[[#This Row],[أيام الغياب]]=\"\",\"\",elaiam(الغياب[[#This Row],[عدد أيام الغياب]]))","v":"يوم واحد"},{"$f":"COUNTIF(F7:AJ7,\"غ\")","v":1},{"$f":"IF(الغياب[[#This Row],[عدد أيام الغياب]]=\"\",\"\",$T$2)","v":10},{"$f":"$X$2","v":2018}]
[null,{"$f":"IF(C8<>\"\",SUBTOTAL(3,$C$7:C8),\"\")","v":2},"معلم 2",{"$f":"IFERROR(VLOOKUP(الغياب[[#This Row],[اسم العملم]],[1]!البياناتالاساسية[[الاسم رباعي]:[الرقم الوطني]],53,0),\"\")","v":""},{"$f":"IFERROR(VLOOKUP(الغياب[[#This Row],[اسم العملم]],[1]!البياناتالاساسية[[الاسم رباعي]:[الرقم الوطني]],55,0),\"\")","v":""},null,null,null,null,null,null,null,null,null,null,null,null,null,null,null,null,null,null,null,"غ",null,null,null,null,null,null,null,null,null,null,null,"20 ",{"$f":"IF(الغياب[[#This Row],[أيام الغياب]]=\"\",\"\",elaiam(الغياب[[#This Row],[عدد أيام الغياب]]))","v":"يوم واحد"},1,{"$f":"IF(الغياب[[#This Row],[عدد أيام الغياب]]=\"\",\"\",$T$2)","v":10},2018]
[null,{"$f":"IF(C9<>\"\",SUBTOTAL(3,$C$7:C9),\"\")","v":3},"معلم 3",{"$f":"IFERROR(VLOOKUP(الغياب[[#This Row],[اسم العملم]],[1]!البياناتالاساسية[[الاسم رباعي]:[الرقم الوطني]],53,0),\"\")","v":""},{"$f":"IFERROR(VLOOKUP(الغياب[[#This Row],[اسم العملم]],[1]!البياناتالاساسية[[الاسم رباعي]:[الرقم الوطني]],55,0),\"\")","v":""},null,null,null,null,null,null,"غ",null,null,null,null,null,null,null,null,null,null,null,null,null,null,null,null,null,null,null,null,null,null,null,null,"7 ",{"$f":"IF(الغياب[[#This Row],[أيام الغياب]]=\"\",\"\",elaiam(الغياب[[#This Row],[عدد أيام الغياب]]))","v":"يوم واحد"},1,{"$f":"IF(الغياب[[#This Row],[عدد أيام الغياب]]=\"\",\"\",$T$2)","v":10},2018]
[null,{"$f":"IF(C10<>\"\",SUBTOTAL(3,$C$7:C10),\"\")","v":4},"معلم 4",{"$f":"IFERROR(VLOOKUP(الغياب[[#This Row],[اسم العملم]],[1]!البياناتالاساسية[[الاسم رباعي]:[الرقم الوطني]],53,0),\"\")","v":""},{"$f":"IFERROR(VLOOKUP(الغياب[[#This Row],[اسم العملم]],[1]!البياناتالاساسية[[الاسم رباعي]:[الرقم الوطني]],55,0),\"\")","v":""},null,null,null,null,"غ",null,null,null,null,null,null,null,null,null,null,null,null,null,null,null,null,null,null,null,null,null,null,null,null,null,null,"5 ",{"$f":"IF(الغياب[[#This Row],[أيام الغياب]]=\"\",\"\",elaiam(الغياب[[#This Row],[عدد أيام الغياب]]))","v":"يوم واحد"},1,{"$f":"IF(الغياب[[#This Row],[عدد أيام الغياب]]=\"\",\"\",$T$2)","v":10},2018]
[null,{"$f":"IF(C11<>\"\",SUBTOTAL(3,$C$7:C11),\"\")","v":5},"معلم 5",{"$f":"IFERROR(VLOOKUP(الغياب[[#This Row],[اسم العملم]],[1]!البياناتالاساسية[[الاسم رباعي]:[الرقم الوطني]],53,0),\"\")","v":""},{"$f":"IFERROR(VLOOKUP(الغياب[[#This Row],[اسم العملم]],[1]!البياناتالاساسية[[الاسم رباعي]:[الرقم الوطني]],55,0),\"\")","v":""},null,null,null,null,null,null,null,null,null,null,null,null,null,null,null,null,null,null,null,null,null,null,null,null,null,null,"غ",null,null,null,null,"27 ",{"$f":"IF(الغياب[[#This Row],[أيام الغياب]]=\"\",\"\",elaiam(الغياب[[#This Row],[عدد أيام الغياب]]))","v":"يوم واحد"},1,{"$f":"IF(الغياب[[#This Row],[عدد أيام الغياب]]=\"\",\"\",$T$2)","v":10},2018]
[null,{"$f":"IF(C12<>\"\",SUBTOTAL(3,$C$7:C12),\"\")","v":6},"معلم 6",{"$f":"IFERROR(VLOOKUP(الغياب[[#This Row],[اسم العملم]],[1]!البياناتالاساسية[[الاسم رباعي]:[الرقم الوطني]],53,0),\"\")","v":""},{"$f":"IFERROR(VLOOKUP(الغياب[[#This Row],[اسم العملم]],[1]!البياناتالاساسية[[الاسم رباعي]:[الرقم الوطني]],55,0),\"\")","v":""},null,null,null,null,null,null,null,null,null,null,null,null,null,null,null,null,null,"غ",null,null,null,null,null,null,"غ",null,null,null,null,null,null,"25 -18 ",{"$f":"IF(الغياب[[#This Row],[أيام الغياب]]=\"\",\"\",elaiam(الغياب[[#This Row],[عدد أيام الغياب]]))","v":"يومـــان"},2,{"$f":"IF(الغياب[[#This Row],[عدد أيام الغياب]]=\"\",\"\",$T$2)","v":10},2018]
[null,{"$f":"IF(C13<>\"\",SUBTOTAL(3,$C$7:C13),\"\")","v":7},"معلم 7",{"$f":"IFERROR(VLOOKUP(الغياب[[#This Row],[اسم العملم]],[1]!البياناتالاساسية[[الاسم رباعي]:[الرقم الوطني]],53,0),\"\")","v":""},{"$f":"IFERROR(VLOOKUP(الغياب[[#This Row],[اسم العملم]],[1]!البياناتالاساسية[[الاسم رباعي]:[الرقم الوطني]],55,0),\"\")","v":""},null,null,null,null,null,null,null,null,null,null,null,null,null,null,null,null,null,"غ",null,null,null,null,null,null,null,null,null,null,null,null,null,"18 ",{"$f":"IF(الغياب[[#This Row],[أيام الغياب]]=\"\",\"\",elaiam(الغياب[[#This Row],[عدد أيام الغياب]]))","v":"يوم واحد"},1,{"$f":"IF(الغياب[[#This Row],[عدد أيام الغياب]]=\"\",\"\",$T$2)","v":10},2018]
[null,{"$f":"IF(C14<>\"\",SUBTOTAL(3,$C$7:C14),\"\")","v":8},"معلم 8",{"$f":"IFERROR(VLOOKUP(الغياب[[#This Row],[اسم العملم]],[1]!البياناتالاساسية[[الاسم رباعي]:[الرقم الوطني]],53,0),\"\")","v":""},{"$f":"IFERROR(VLOOKUP(الغياب[[#This Row],[اسم العملم]],[1]!البياناتالاساسية[[الاسم رباعي]:[الرقم الوطني]],55,0),\"\")","v":""},null,null,"غ","غ",null,null,null,null,null,null,null,null,null,null,null,null,null,null,null,null,null,null,null,null,null,"غ",null,null,null,null,null,"26 -4 -3 ",{"$f":"IF(الغياب[[#This Row],[أيام الغياب]]=\"\",\"\",elaiam(الغياب[[#This Row],[عدد أيام الغياب]]))","v":"ثلاثة أيام"},3,{"$f":"IF(الغياب[[#This Row],[عدد أيام الغياب]]=\"\",\"\",$T$2)","v":10},2018]
[null,{"$f":"IF(C15<>\"\",SUBTOTAL(3,$C$7:C15),\"\")","v":9},"معلم 9",{"$f":"IFERROR(VLOOKUP(الغياب[[#This Row],[اسم العملم]],[1]!البياناتالاساسية[[الاسم رباعي]:[الرقم الوطني]],53,0),\"\")","v":""},{"$f":"IFERROR(VLOOKUP(الغياب[[#This Row],[اسم العملم]],[1]!البياناتالاساسية[[الاسم رباعي]:[الرقم الوطني]],55,0),\"\")","v":""},null,null,null,null,"غ",null,null,null,null,null,null,null,null,null,null,null,null,null,null,null,null,null,null,null,null,null,null,null,null,null,null,"5 ",{"$f":"IF(الغياب[[#This Row],[أيام الغياب]]=\"\",\"\",elaiam(الغياب[[#This Row],[عدد أيام الغياب]]))","v":"يوم واحد"},1,{"$f":"IF(الغياب[[#This Row],[عدد أيام الغياب]]=\"\",\"\",$T$2)","v":10},2018]
[null,{"$f":"IF(C16<>\"\",SUBTOTAL(3,$C$7:C16),\"\")","v":10},"معلم 10",{"$f":"IFERROR(VLOOKUP(الغياب[[#This Row],[اسم العملم]],[1]!البياناتالاساسية[[الاسم رباعي]:[الرقم الوطني]],53,0),\"\")","v":""},{"$f":"IFERROR(VLOOKUP(الغياب[[#This Row],[اسم العملم]],[1]!البياناتالاساسية[[الاسم رباعي]:[الرقم الوطني]],55,0),\"\")","v":""},null,null,null,null,null,null,null,null,null,null,null,null,null,null,null,null,null,null,"غ",null,null,null,null,"غ",null,null,null,null,null,null,null,"24 -19 ",{"$f":"IF(الغياب[[#This Row],[أيام الغياب]]=\"\",\"\",elaiam(الغياب[[#This Row],[عدد أيام الغياب]]))","v":"يومـــان"},2,{"$f":"IF(الغياب[[#This Row],[عدد أيام الغياب]]=\"\",\"\",$T$2)","v":10},2018]
[null,{"$f":"IF(C17<>\"\",SUBTOTAL(3,$C$7:C17),\"\")","v":11},"معلم 11",{"$f":"IFERROR(VLOOKUP(الغياب[[#This Row],[اسم العملم]],[1]!البياناتالاساسية[[الاسم رباعي]:[الرقم الوطني]],53,0),\"\")","v":""},{"$f":"IFERROR(VLOOKUP(الغياب[[#This Row],[اسم العملم]],[1]!البياناتالاساسية[[الاسم رباعي]:[الرقم الوطني]],55,0),\"\")","v":""},null,null,null,null,null,null,null,null,null,null,null,null,null,null,null,null,null,null,"غ",null,null,null,null,null,null,null,null,null,null,null,null,"19 ",{"$f":"IF(الغياب[[#This Row],[أيام الغياب]]=\"\",\"\",elaiam(الغياب[[#This Row],[عدد أيام الغياب]]))","v":"يوم واحد"},1,{"$f":"IF(الغياب[[#This Row],[عدد أيام الغياب]]=\"\",\"\",$T$2)","v":10},2018]
[null,{"$f":"IF(C18<>\"\",SUBTOTAL(3,$C$7:C18),\"\")","v":12},"معلم 12",{"$f":"IFERROR(VLOOKUP(الغياب[[#This Row],[اسم العملم]],[1]!البياناتالاساسية[[الاسم رباعي]:[الرقم الوطني]],53,0),\"\")","v":""},{"$f":"IFERROR(VLOOKUP(الغياب[[#This Row],[اسم العملم]],[1]!البياناتالاساسية[[الاسم رباعي]:[الرقم الوطني]],55,0),\"\")","v":""},null,null,null,null,null,null,null,null,null,null,null,null,null,null,null,null,null,null,null,"غ",null,null,null,null,null,null,null,null,null,null,null,"20 ",{"$f":"IF(الغياب[[#This Row],[أيام الغياب]]=\"\",\"\",elaiam(الغياب[[#This Row],[عدد أيام الغياب]]))","v":"يوم واحد"},1,{"$f":"IF(الغياب[[#This Row],[عدد أيام الغياب]]=\"\",\"\",$T$2)","v":10},2018]
[null,{"$f":"IF(C19<>\"\",SUBTOTAL(3,$C$7:C19),\"\")","v":13},"معلم 13",{"$f":"IFERROR(VLOOKUP(الغياب[[#This Row],[اسم العملم]],[1]!البياناتالاساسية[[الاسم رباعي]:[الرقم الوطني]],53,0),\"\")","v":""},{"$f":"IFERROR(VLOOKUP(الغياب[[#This Row],[اسم العملم]],[1]!البياناتالاساسية[[الاسم رباعي]:[الرقم الوطني]],55,0),\"\")","v":""},null,null,null,null,null,null,null,null,null,null,"غ",null,null,null,null,null,null,null,null,null,null,null,null,"غ",null,null,null,null,null,null,null,"24 -11 ",{"$f":"IF(الغياب[[#This Row],[أيام الغياب]]=\"\",\"\",elaiam(الغياب[[#This Row],[عدد أيام الغياب]]))","v":"يومـــان"},2,{"$f":"IF(الغياب[[#This Row],[عدد أيام الغياب]]=\"\",\"\",$T$2)","v":10},2018]
[null,{"$f":"IF(C20<>\"\",SUBTOTAL(3,$C$7:C20),\"\")","v":14},"معلم 14",{"$f":"IFERROR(VLOOKUP(الغياب[[#This Row],[اسم العملم]],[1]!البياناتالاساسية[[الاسم رباعي]:[الرقم الوطني]],53,0),\"\")","v":""},{"$f":"IFERROR(VLOOKUP(الغياب[[#This Row],[اسم العملم]],[1]!البياناتالاساسية[[الاسم رباعي]:[الرقم الوطني]],55,0),\"\")","v":""},null,null,null,null,null,null,null,null,null,null,null,null,null,null,null,null,null,null,null,null,"غ",null,null,null,null,null,null,null,null,null,null,"21 ",{"$f":"IF(الغياب[[#This Row],[أيام الغياب]]=\"\",\"\",elaiam(الغياب[[#This Row],[عدد أيام الغياب]]))","v":"يوم واحد"},1,{"$f":"IF(الغياب[[#This Row],[عدد أيام الغياب]]=\"\",\"\",$T$2)","v":10},2018]